bitfinex-derivatives/quotes_ETHF0:USTF0_20250520
["timestamp","ask_amount","ask_price","bid_price","bid_amount"]
[1747703517645,0.00595155,2519.5,2519.3,0.79358]
[1747703517848,0.00595155,2519.5,2519.4,0.79357]
[1747703519845,0.00595155,2519.5,2519.4,8.20857]
[1747703520049,0.96280438,2519.8,2519.7,0.79347]
[1747703520553,2.32293881,2519.9,2519.8,0.79344]
[1747703520856,3.2078,2520.0,2519.9,0.79341]
[1747703521855,0.00595155,2520.2,2520.1,0.79335]
[1747703522053,0.00595155,2520.2,2520.1,5.79335]
[1747703522649,0.00595155,2520.2,2520.1,0.79335]
[1747703523051,0.79335,2520.1,2520.0,1.3065]
[1747703523247,0.79338,2520.0,2519.9,0.00595155]
[1747703523456,7.05418,2520.0,2519.9,0.00595155]
[1747703523856,2.05418,2520.0,2519.9,0.00595155]
[1747703524153,0.79928155,2520.2,2519.9,4.00714155]
[1747703524352,0.79336,2520.1,2520.0,1.3573]
[1747703524552,0.79338,2520.0,2519.9,3.21375155]
[1747703524851,1.2608,2520.1,2519.9,3.21375155]
[1747703525052,1.2608,2520.1,2520.0,1.3573]
[1747703525357,2.05415,2520.1,2520.0,1.3573]
[1747703525857,2.05415,2520.1,2519.9,3.21375155]
[1747703525858,0.79338,2520.0,2519.9,3.21375155]
[1747703526159,2.07168,2520.0,2519.9,0.00595155]
[1747703530661,10.27948,2520.0,2519.9,0.00595155]
[1747703531163,13.01948,2520.0,2519.9,0.00595155]
[1747703532767,8.01948,2520.0,2519.9,0.00595155]
[1747703532965,13.79168,2520.0,2519.9,0.00595155]
[1747703533166,11.05168,2520.0,2519.9,0.00595155]
[1747703533366,2.07168,2520.0,2519.9,0.00595155]
[1747703533569,2.07168,2520.0,2519.9,3.21375155]
[1747703533867,2.07168,2520.0,2519.9,0.00595155]
[1747703534268,2.07168,2520.0,2519.9,1.55e-06]
[1747703534269,19.25948,2520.0,2519.9,1.55e-06]
[1747703535267,62.79948,2520.0,2519.9,1.55e-06]
[1747703536960,62.80048,2520.0,2519.9,1.55e-06]
[1747703537768,65.14179144,2520.0,2519.9,1.55e-06]
[1747703540367,0.79379,2518.7,2518.6,3.2078]
[1747703541069,0.79382,2518.6,2518.5,0.47512436]
[1747703541764,2.10312,2518.6,2518.5,0.47512436]
[1747703541965,2.10312,2518.6,2518.4,0.64007902]
[1747703541966,0.79385,2518.5,2518.4,1.3311]
[1747703543064,8.982,2518.7,2518.4,2.12496]
[1747703543268,0.79382,2518.6,2518.4,1.3311]
[1747703543469,0.79385,2518.5,2518.4,1.3311]
[1747703544673,0.79388,2518.4,2518.3,0.00595155]
[1747703544971,0.79404,2517.9,2517.8,1.3105]
[1747703545175,8.983,2518.2,2517.6,1.79572436]
[1747703545366,0.79399,2518.1,2517.7,2.10457]
[1747703545567,8.983,2518.3,2517.8,4.5183]
[1747703545768,0.79401,2518.0,2517.8,1.31645155]
[1747703546772,0.79404,2517.9,2517.8,1.31645155]
[1747703547172,1.3365,2518.2,2517.8,1.31645155]
[1747703547471,0.79397,2518.2,2517.8,5.31832155]
[1747703549776,41.5123,2518.6,2518.1,3.2078]
[1747703549971,0.79386,2518.5,2518.2,2.74084]
[1747703550170,0.79388,2518.4,2518.3,1.9517]
[1747703550974,0.79388,2518.4,2518.3,1.2687]
[1747703552078,8.984,2518.6,2518.3,1.2687]
[1747703552377,0.79388,2518.4,2518.3,1.2687]
[1747703552881,0.79387,2518.5,2518.3,1.2687]
[1747703553082,9.77784,2518.6,2518.3,1.2687]
[1747703553281,0.79386,2518.5,2518.3,1.2687]
[1747703554489,9.77782,2518.6,2518.3,1.2687]
[1747703554781,8.984,2518.6,2518.3,5.27041]
[1747703555178,4.00158,2518.8,2518.3,5.27041]
[1747703555377,3.2078,2518.8,2518.6,0.79381]
[1747703555680,0.79969155,2518.9,2518.7,1.9623]
[1747703555879,0.79969155,2518.9,2518.8,1.9366]
[1747703557684,0.00595155,2518.9,2518.8,1.9366]
[1747703558583,0.00595155,2518.9,2518.8,2.73036]
[1747703560184,0.00595155,2518.9,2518.8,7.73036]
[1747703560485,12.68974716,2519.7,2518.8,7.73036]
[1747703560486,12.09933716,2519.7,2519.4,0.79355]
[1747703560676,12.09933716,2519.7,2519.5,2.0186]
[1747703560879,2.34084716,2519.7,2519.6,4.00131]
[1747703562186,3.13431716,2519.7,2519.6,3.2078]
[1747703562383,4.05623071,2519.9,2519.5,2.0186]
[1747703562384,0.79351,2519.6,2519.5,2.0186]
[1747703562985,2.28550382,2519.9,2519.5,2.0186]
[1747703563184,0.79349,2519.7,2519.5,2.0186]
[1747703563487,1.77651382,2519.9,2519.5,5.2264]
[1747703563691,0.98310382,2519.9,2519.6,0.7116]
[1747703563882,1.77652382,2519.9,2519.7,1.3248]
[1747703564682,0.79344,2519.8,2519.7,1.3248]
[1747703565390,0.79347,2519.7,2519.6,0.7116]
[1747703565580,0.79354,2519.5,2519.4,0.00595155]
[1747703565785,2.08283,2519.6,2519.4,0.00595155]
[1747703565984,0.79354,2519.5,2519.4,0.00595155]
[1747703566289,2.08281,2519.6,2519.4,0.00595155]
[1747703566681,2.08281,2519.6,2519.4,1.32005155]
[1747703566882,0.00595155,2519.9,2519.5,4.00134]
[1747703567182,0.00595155,2519.9,2519.6,1.3141]
[1747703567789,0.79344,2519.8,2519.6,1.3141]
[1747703568083,0.79347,2519.7,2519.6,1.3141]
[1747703568687,0.00595155,2519.9,2519.6,1.3141]
[1747703568880,0.00595155,2519.9,2519.7,1.50385]
[1747703569081,0.00595155,2519.9,2519.8,1.3909]
[1747703570192,0.00595155,2519.9,2519.8,2.18434]
[1747703570396,0.00595155,2519.9,2519.8,5.39214]
[1747703570690,0.00595155,2519.9,2519.8,4.5987]
[1747703570993,0.00595155,2519.9,2519.8,5.39214]
[1747703573691,3.2078,2520.5,2520.3,0.79329]
[1747703573887,1.3361,2520.6,2520.4,2.12575]
[1747703574093,3.31799943,2521.1,2520.4,4.5403]
[1747703574288,0.79313,2520.8,2520.7,3.2078]
[1747703574593,3.24919155,2521.0,2520.3,3.2078]
[1747703574894,1.2605,2520.7,2520.3,3.2078]
[1747703575095,0.79329,2520.3,2520.2,3.7197]
[1747703575394,0.79326,2520.4,2520.2,3.7197]
[1747703575694,1.2605,2520.3,2520.2,1.3047]
[1747703575897,2.05379,2520.3,2520.2,1.3047]
[1747703577383,1.2605,2520.3,2520.2,1.3047]
[1747703578495,1.2605,2520.3,2520.2,2.09802]
[1747703578891,1.2605,2520.3,2520.2,1.3047]
[1747703579099,2.05379,2520.3,2520.2,1.3047]
[1747703579295,0.79335,2520.1,2520.0,3.9065]
[1747703579496,0.79333,2520.2,2520.0,6.07847]
[1747703580392,0.79326,2520.4,2520.2,0.7933]
[1747703580893,0.79326,2520.4,2520.3,1.2793]
[1747703581201,0.79334,2520.2,2520.0,4.69986]
[1747703581394,0.79334,2520.2,2520.0,5.97916]
[1747703581697,2.0919,2520.3,2520.0,5.97916]
[1747703581888,2.0919,2520.3,2520.1,0.79335]
[1747703582088,2.0919,2520.3,2520.0,5.97916]
[1747703582498,0.79333,2520.2,2520.0,5.97916]
[1747703582698,2.0919,2520.3,2520.0,5.97916]
[1747703582895,0.79334,2520.2,2520.0,5.1858]
[1747703583093,0.79334,2520.2,2520.0,5.97916]
[1747703583602,0.79335,2520.1,2520.0,5.1858]
[1747703583797,0.79333,2520.2,2520.0,5.1858]
[1747703584100,0.79333,2520.2,2520.0,5.97918]
[1747703584400,0.79335,2520.1,2520.0,4.4871]
[1747703584599,2.07925,2520.1,2520.0,3.2078]
[1747703585493,6.2859,2520.1,2519.4,3.21375155]
[1747703585700,0.79354,2519.5,2519.4,3.21375155]
[1747703586399,2.15044,2519.5,2519.4,0.00595155]
[1747703587199,1.3569,2519.5,2519.4,0.00595155]
[1747703587402,10.3169,2519.5,2519.4,0.00595155]
[1747703588199,0.00595155,2519.7,2519.6,0.79351]
[1747703588403,0.79351,2519.6,2519.5,1.3725]
[1747703588697,0.79351,2519.6,2519.4,4.47565155]
[1747703588698,0.79354,2519.5,2519.4,0.00595155]
[1747703588897,2.15044,2519.5,2519.4,0.00595155]
[1747703590403,1.3569,2519.5,2519.4,0.00595155]
[1747703590597,8.938,2519.6,2519.4,0.00595155]
[1747703590798,9.73151,2519.6,2519.4,1.31185155]
[1747703591005,11.02891,2519.6,2519.4,1.31185155]
[1747703591204,0.79354,2519.5,2519.4,1.31185155]
[1747703591797,2.09094,2519.5,2519.4,1.31185155]
[1747703592004,2.09094,2519.5,2519.4,0.00595155]
[1747703594307,11.02994,2519.5,2519.4,0.00595155]
[1747703595908,11.71974,2519.5,2519.4,0.00595155]
[1747703596909,11.71974,2519.5,2519.4,1.55e-06]
[1747703596910,16.71974,2519.5,2519.4,1.55e-06]
[1747703597101,19.45974,2519.5,2519.4,1.55e-06]
[1747703597403,1.98403,2519.3,2518.4,0.47512436]
[1747703597598,0.79385,2518.5,2518.4,0.47512436]
[1747703598707,0.79392,2518.3,2518.2,0.64603057]
[1747703598911,12.94172,2518.3,2518.2,0.64603057]
[1747703599111,17.94172,2518.3,2518.2,0.64603057]
[1747703599313,19.32902,2518.3,2518.2,0.64603057]
[1747703599809,19.32902,2518.3,2518.2,0.00595155]
[1747703600107,0.79401,2518.0,2517.9,3.2078]
[1747703603009,0.79407,2517.8,2517.7,0.00595155]
[1747703603215,9.73607,2517.8,2517.7,1.55e-06]
[1747703603514,14.73607,2517.8,2517.7,1.55e-06]
[1747703603714,0.79436,2516.9,2516.8,1.3968]
[1747703603913,8.942,2517.0,2516.7,1.07384709]
[1747703604213,0.79439,2516.8,2516.7,1.07384709]
[1747703604404,0.79439,2516.8,2516.7,0.6397]
[1747703605020,0.79442,2516.7,2516.6,1.3968]
[1747703605210,0.79445,2516.6,2516.5,0.00595155]
[1747703605515,9.73845,2516.6,2516.5,0.00595155]
[1747703605718,10.42085,2516.6,2516.5,0.00595155]
[1747703606308,9.6264,2516.6,2516.5,0.00595155]
[1747703606614,10.42085,2516.6,2516.5,0.00595155]
[1747703606913,14.93745,2516.6,2516.5,0.00595155]
[1747703609116,8.944,2516.6,2516.5,0.00595155]
[1747703609309,9.73845,2516.6,2516.5,0.00595155]
[1747703609510,8.944,2516.6,2516.5,0.00595155]
[1747703609712,9.73845,2516.6,2516.5,0.00595155]
[1747703610316,8.944,2516.6,2516.5,0.00595155]
[1747703610516,1.3476,2516.8,2516.5,0.00595155]
[1747703611024,3.21375155,2516.9,2516.5,0.00595155]
[1747703611316,0.00595155,2516.9,2516.8,0.79439]
[1747703611714,0.00595155,2516.9,2516.8,9.00219]
[1747703612313,3.2078,2517.6,2517.3,0.79422]
[1747703612619,9.74217,2517.5,2517.4,1.3833]
[1747703613018,11.03597,2517.5,2517.4,1.3833]
[1747703613519,1.2938,2517.5,2517.4,1.3833]
[1747703613713,8.95395155,2517.7,2517.4,4.5911]
[1747703613912,8.95395155,2517.7,2517.6,0.79414]
[1747703614320,0.00595155,2517.7,2517.6,2.14044]
[1747703615322,0.00595155,2517.7,2517.6,1.3463]
[1747703615820,0.80005155,2517.7,2517.6,1.3463]
[1747703616116,0.00595155,2517.7,2517.6,1.3463]
[1747703616814,0.00595155,2517.7,2517.6,2.14044]
[1747703617014,0.80005155,2517.7,2517.6,1.3463]
[1747703617721,0.79417,2517.6,2517.3,0.79423]
[1747703617921,0.79416,2517.6,2517.3,0.6421]
[1747703618516,0.79414,2517.6,2517.3,1.43632]
[1747703618819,0.79417,2517.5,2517.3,0.6421]
[1747703619018,0.79416,2517.6,2517.4,1.2751]
[1747703619222,0.00595155,2517.7,2517.4,1.2751]
[1747703619412,0.00595155,2517.7,2517.4,2.06927]
[1747703619614,0.00595155,2517.7,2517.5,0.79417]
[1747703619818,0.00595155,2517.7,2517.4,1.2751]
[1747703619819,0.00595155,2517.7,2517.6,1.3496]
[1747703620013,0.80005155,2517.7,2517.6,1.3496]
[1747703621420,0.668,2518.2,2517.6,1.3496]
[1747703621421,12.1318,2518.3,2517.6,1.3496]
[1747703621720,9.71793,2518.3,2518.0,0.79399]
[1747703621922,9.71793,2518.3,2518.1,1.3496]
[1747703621923,0.79395,2518.2,2518.1,1.3496]
[1747703622123,2.16645,2518.2,2518.1,1.3496]
[1747703622420,8.924,2518.3,2518.1,1.3496]
[1747703622620,8.924,2518.3,2518.2,0.79395]
[1747703622813,0.00595155,2518.4,2518.3,0.79392]
[1747703623021,0.00595155,2518.4,2518.2,0.79393]
[1747703623212,0.79983155,2518.4,2518.3,1.2826]
[1747703624022,0.00595155,2518.4,2518.3,1.2826]
[1747703625321,0.79983155,2518.4,2518.3,1.2826]
[1747703625519,0.79401,2518.0,2517.9,1.30085155]
[1747703625917,0.79401,2518.0,2517.9,0.00595155]
[1747703626226,2.12601,2518.0,2517.9,0.00595155]
[1747703629625,1.332,2518.0,2517.9,0.00595155]
[1747703629827,8.923,2518.0,2517.9,1.28695155]
[1747703630027,8.923,2518.0,2517.9,2.67265155]
[1747703630528,9.71701,2518.0,2517.9,0.00595155]
[1747703630727,11.02291,2518.0,2517.9,0.00595155]
[1747703630918,8.923,2518.3,2517.9,0.00595155]
[1747703631118,8.923,2518.3,2517.9,2.67265155]
[1747703631319,2.09987,2518.2,2517.9,2.67265155]
[1747703631521,8.923,2518.3,2517.9,3.46668155]
[1747703631834,0.79396,2518.2,2517.9,2.67265155]
[1747703632633,0.79401,2518.0,2517.9,2.67265155]
[1747703634333,0.79401,2518.0,2517.9,0.00595155]
[1747703635227,4.00181,2518.0,2517.9,0.00595155]
[1747703639138,9.00181,2518.0,2517.9,1.55e-06]
[1747703639836,49.80181,2518.0,2517.9,1.55e-06]
[1747703640132,52.54181,2518.0,2517.9,1.55e-06]
[1747703641238,61.46481,2518.0,2517.9,1.55e-06]
[1747703641432,52.54181,2518.0,2517.9,1.55e-06]
[1747703641629,61.46481,2518.0,2517.9,1.55e-06]
[1747703642134,58.72481,2518.0,2517.9,1.55e-06]
[1747703642433,4.00181,2518.0,2517.9,1.55e-06]
[1747703642633,10.3177,2518.0,2517.9,1.55e-06]
[1747703642932,14.31951,2518.0,2517.9,1.55e-06]
[1747703643131,5.39651,2518.0,2517.9,1.55e-06]
[1747703643330,14.96621,2518.0,2517.9,1.55e-06]
[1747703643537,6.04321,2518.0,2517.9,1.55e-06]
[1747703643737,17.30851536,2518.0,2517.9,1.55e-06]
[1747703644736,8.38551536,2518.0,2517.9,1.55e-06]
[1747703644934,5.55010536,2518.0,2517.9,0.79404155]
[1747703645133,2.34230536,2518.0,2517.9,0.79404155]
[1747703645534,3.13631536,2518.0,2517.9,1.55e-06]
[1747703645734,6.34411536,2518.0,2517.9,1.55e-06]
[1747703646037,7.68411536,2518.0,2517.9,1.55e-06]
[1747703646236,0.79433,2517.0,2516.9,3.8656]
[1747703646438,0.79433,2517.0,2516.9,5.8499]
[1747703646637,0.79433,2517.0,2516.9,6.48997902]
[1747703646837,8.923,2517.1,2516.9,7.28432902]
[1747703647641,8.923,2517.1,2517.0,0.79433]
[1747703647843,8.924,2517.4,2517.2,0.79426]
[1747703648047,8.924,2517.4,2517.3,1.3261]
[1747703648542,8.924,2517.4,2517.3,2.12033]
[1747703649141,0.79415,2517.6,2517.5,0.79417]
[1747703649142,8.899,2517.6,2517.5,0.79417]
[1747703649336,8.899,2517.9,2517.3,9.5339]
[1747703649537,9.69305,2517.9,2517.3,4.5339]
[1747703649832,9.69305,2517.9,2517.6,0.79412]
[1747703650030,9.69305,2517.9,2517.7,2.6654]
[1747703650235,9.69305,2517.9,2517.8,1.3261]
[1747703651145,8.899,2517.9,2517.0,3.2078]
[1747703651347,0.79407,2517.8,2517.5,0.79417]
[1747703651547,0.79411,2517.7,2517.6,1.3731]
[1747703652542,0.79417,2517.5,2517.4,0.6873]
[1747703653649,0.7942,2517.4,2517.3,1.3731]
[1747703653843,9.6922,2517.4,2517.3,1.3731]
[1747703655148,8.898,2517.4,2517.1,3.8622]
[1747703655350,1.2751,2517.3,2517.1,3.8622]
[1747703655540,8.898,2517.4,2517.1,3.8622]
[1747703655541,8.898,2517.4,2517.2,1.2814]
[1747703655742,8.898,2517.4,2517.2,2.07566]
[1747703656046,8.898,2517.4,2517.2,1.2814]
[1747703656253,8.898,2517.4,2517.2,2.07564]
[1747703656648,6.22220536,2517.7,2517.3,1.3739]
[1747703656850,8.899,2517.6,2517.4,0.79418]
[1747703657045,9.69314,2517.6,2517.5,2.083]
[1747703658956,9.69314,2517.6,2517.5,1.3739]
[1747703659158,8.899,2517.6,2517.5,1.3739]
[1747703659553,11.24130536,2517.7,2517.5,1.3739]
[1747703659748,0.79412,2517.7,2517.5,1.3739]
[1747703659949,8.899,2517.7,2517.5,1.3739]
[1747703660156,3.13639536,2517.8,2517.5,1.3739]
[1747703660358,11.24130536,2517.8,2517.6,0.79412]
[1747703660558,12.03539536,2517.8,2517.7,1.2962]
[1747703660950,9.69309,2517.8,2517.7,1.2962]
[1747703661152,10.2889,2517.8,2517.2,3.0787]
[1747703661352,0.79414,2517.6,2517.5,1.2962]
[1747703663759,0.79423,2517.3,2517.2,3.0787]
[1747703664450,2.1822,2517.5,2517.2,3.87295]
[1747703664656,1.388,2517.5,2517.2,3.87295]
[1747703664961,0.79421,2517.4,2517.2,3.87295]
[1747703665158,0.79421,2517.4,2517.3,1.3277]
[1747703665359,0.7942,2517.4,2517.3,1.3277]
[1747703665663,8.899,2517.8,2517.3,2.12192]
[1747703665961,0.79406,2517.9,2517.4,3.2078]
[1747703666162,41.02415227,2518.0,2517.5,1.3505]
[1747703666163,49.92315227,2518.0,2517.5,1.3505]
[1747703666455,9.87615227,2518.0,2517.7,3.2078]
[1747703666656,0.79406,2517.9,2517.8,2.0006]
[1747703666962,10.67018227,2518.0,2517.8,3.46527]
[1747703667261,9.87615227,2518.0,2517.8,3.46527]
[1747703667455,8.899,2518.2,2518.1,0.79397]
[1747703668268,9.69295,2518.2,2518.1,1.3505]
[1747703669061,0.79395,2518.2,2518.1,1.3505]
[1747703669752,2.34585227,2518.3,2517.8,1.3207]
[1747703669951,2.34585227,2518.3,2517.9,1.3062]
[1747703670156,0.79401,2518.0,2517.9,1.3062]
[1747703670360,1.77109227,2518.3,2518.0,0.794]
[1747703670565,0.79396,2518.2,2518.1,1.3062]
[1747703670866,2.16266,2518.2,2518.1,1.3062]
[1747703671563,1.3687,2518.2,2518.1,1.3062]
[1747703671762,9.69193,2518.3,2518.1,1.3062]
[1747703672158,0.79395,2518.2,2518.1,1.3062]
[1747703672358,8.898,2518.3,2518.1,1.3062]
[1747703672558,8.898,2518.3,2518.2,0.79395]
[1747703672754,12.11175155,2518.4,2518.1,1.3062]
[1747703672961,12.11175155,2518.4,2518.2,0.79393]
[1747703673155,12.11175155,2518.4,2518.3,1.3967]
[1747703673464,12.90563155,2518.4,2518.3,1.3967]
[1747703676568,9.69783155,2518.4,2518.3,1.3967]
[1747703677265,0.79398,2518.1,2518.0,3.21375155]
[1747703677469,0.79398,2518.1,2518.0,0.00595155]
[1747703677865,0.79398,2518.1,2518.0,1.31165155]
[1747703678370,0.79398,2518.1,2518.0,0.00595155]
[1747703681772,5.79398,2518.1,2518.0,0.00595155]
[1747703682069,7.73468,2518.1,2518.0,0.00595155]
[1747703682374,2.73468,2518.1,2518.0,0.00595155]
[1747703683067,7.73468,2518.1,2518.0,0.00595155]
[1747703683468,43.53468,2518.1,2518.0,0.00595155]
[1747703688481,2.73468,2518.1,2518.0,0.00595155]
[1747703688774,11.21977809,2518.2,2518.0,0.00595155]
[1747703688978,11.21977809,2518.2,2518.0,3.57844155]
[1747703689382,12.01372809,2518.2,2518.0,2.78445155]
[1747703689573,11.21977809,2518.2,2518.0,2.78445155]
[1747703689973,11.21977809,2518.2,2518.0,3.57844155]
[1747703690174,12.01373809,2518.2,2518.0,2.78445155]
[1747703690781,0.79396,2518.2,2518.0,2.78445155]
[1747703691174,8.875,2518.3,2518.0,2.78445155]
[1747703691375,0.00595155,2518.4,2518.3,0.79392]
[1747703691574,0.00595155,2518.4,2518.3,2.12842]
[1747703691978,0.00595155,2518.4,2518.3,1.3345]
[1747703692282,0.79983155,2518.4,2518.3,1.3345]
[1747703692782,0.00595155,2518.4,2518.3,1.3345]
[1747703693880,0.00595155,2518.4,2518.3,1.2154]
[1747703694080,0.00595155,2518.4,2518.3,2.00932]
[1747703695381,0.00595155,2518.4,2518.3,7.00932]
[1747703697087,0.00595155,2518.4,2518.3,7.44655019]
[1747703698389,3.9027,2519.4,2518.4,1.98472]
[1747703698688,3.2078,2519.4,2519.2,0.79363]
[1747703699091,2.08327682,2519.5,2519.2,4.00143]
[1747703699280,0.79359,2519.4,2519.2,3.2078]
[1747703699590,4.11553036,2519.3,2519.1,0.79365]
[1747703700288,3.32193036,2519.3,2519.2,0.79363]
[1747703700488,0.97715227,2519.3,2519.2,4.00143]
[1747703700687,2.08921837,2519.5,2519.3,0.79359]
[1747703700995,0.79949155,2519.5,2519.3,0.79359]
[1747703701285,0.00595155,2519.5,2519.3,0.79359]
[1747703701488,0.00595155,2519.5,2519.3,0.6734]
[1747703701692,0.79950155,2519.5,2519.3,1.46698]
[1747703701892,0.79950155,2519.5,2519.3,0.6734]
[1747703702094,0.79357,2519.4,2519.3,0.6734]
[1747703702295,2.06627,2519.4,2519.3,0.6734]
[1747703702791,2.06627,2519.4,2519.2,3.2078]
[1747703702792,0.7936,2519.3,2519.2,3.2078]
[1747703702995,2.0663,2519.3,2519.2,3.2078]
[1747703703794,0.7936,2519.3,2519.2,3.2078]
[1747703703989,0.79359,2519.4,2519.2,4.00143]
[1747703704290,0.79357,2519.4,2519.2,3.2078]
[1747703704697,0.00595155,2519.5,2519.2,3.8717]
[1747703704698,0.7936,2519.3,2519.2,3.8717]
[1747703705386,0.00595155,2519.5,2519.2,3.8717]
[1747703705592,0.79359,2519.4,2519.2,4.66532]
[1747703706695,0.7936,2519.3,2519.2,3.8717]
[1747703706994,9.6646,2519.3,2519.2,3.2078]
[1747703707184,0.79382,2518.6,2518.5,0.47992934]
[1747703707388,12.87262,2518.6,2518.5,9.34e-06]
[1747703707588,17.87262,2518.6,2518.5,9.34e-06]
[1747703709099,18.56962,2518.6,2518.5,9.34e-06]
[1747703709491,13.56962,2518.6,2518.5,9.34e-06]
[1747703709692,18.56962,2518.6,2518.5,9.34e-06]
[1747703710092,0.79398,2518.1,2518.0,0.00595155]
[1747703710292,9.64098,2518.1,2518.0,0.00595155]
[1747703710697,10.94078,2518.1,2518.0,0.00595155]
[1747703710891,0.79412,2517.7,2517.5,0.693]
[1747703711101,10.2208,2517.6,2517.5,0.693]
[1747703711498,10.2208,2517.6,2517.4,1.98905549]
[1747703711905,0.79417,2517.5,2517.4,1.98905549]
[1747703712202,2.16797,2517.5,2517.2,1.45171155]
[1747703712403,1.3738,2517.5,2517.3,2.10723]
[1747703713005,1.3738,2517.5,2517.3,1.313]
[1747703713801,5.37578,2517.5,2517.3,1.313]
[1747703714003,0.79423,2517.3,2517.2,0.00595155]
[1747703714699,7.05823,2517.3,2517.2,0.00595155]
[1747703715105,1.98568,2517.2,2516.4,0.63996332]
[1747703715404,3.2078,2516.9,2516.4,0.63996332]
[1747703715604,9.4891,2516.8,2516.5,0.79448]
[1747703715807,1.264,2516.7,2516.5,2.08078]
[1747703716003,10.113,2516.7,2516.5,2.08078]
[1747703716199,8.85,2516.6,2516.5,1.2863]
[1747703716406,0.79448,2516.5,2516.4,0.63996332]
[1747703716599,2.05848,2516.5,2516.4,0.63996332]
[1747703717608,3.2078,2516.6,2516.5,0.79448]
[1747703717804,10.34110814,2518.7,2516.4,8.39946332]
[1747703717805,3.2078,2517.1,2516.4,8.39946332]
[1747703718101,12.0578,2517.1,2517.0,0.79433]
[1747703718308,3.2078,2517.1,2517.0,0.79433]
[1747703719010,3.2078,2517.1,2516.9,0.79434]
[1747703719307,3.2078,2517.1,2517.0,2.0683]
[1747703719510,3.2078,2517.1,2517.0,2.86263]
[1747703719700,8.85,2517.3,2517.2,0.79426]
[1747703719896,2.34477809,2517.4,2517.3,0.79423]
[1747703720101,11.19577809,2517.4,2517.3,0.79423]
[1747703720297,12.53207809,2517.4,2517.2,1.3411]
[1747703720710,13.32629809,2517.4,2517.2,1.3411]
[1747703721011,10.98152,2517.4,2517.2,1.3411]
[1747703721704,0.79434,2517.0,2516.7,4.00221]
[1747703722009,0.79434,2517.0,2516.5,1.47667]
[1747703722010,0.79439,2516.8,2516.5,1.47667]
[1747703722214,0.79442,2516.7,2516.5,0.6822]
[1747703722411,1.3363,2516.7,2516.5,1.47668]
[1747703722605,1.3363,2516.7,2516.6,0.79445]
[1747703723012,1.3363,2516.7,2516.5,2.0233]
[1747703723206,1.3363,2516.7,2516.5,2.81777]
[1747703723713,1.3363,2516.7,2516.6,0.79445]
[1747703725216,8.852,2517.1,2516.9,0.79434]
[1747703725410,1.3761,2517.0,2516.7,1.3439]
[1747703725714,2.17044,2517.0,2516.8,0.79439]
[1747703726516,8.852,2517.1,2517.0,0.79433]
[1747703726714,9.6463,2517.1,2516.9,0.79434]
[1747703726910,10.959,2517.1,2516.9,0.79434]
[1747703727108,10.1647,2517.1,2517.0,0.79433]
[1747703727307,8.852,2517.1,2517.0,0.79433]
[1747703727509,1.3127,2517.1,2517.0,0.79433]
[1747703727710,12.0598,2517.2,2517.0,0.79433]
[1747703727911,13.3725,2517.2,2517.1,2.12809]
[1747703729011,3.21375155,2517.8,2517.1,9.5416]
[1747703729210,3.21375155,2517.8,2517.2,1.3452]
[1747703729407,3.21375155,2517.8,2517.3,1.3184]
[1747703729408,0.00595155,2517.8,2517.3,1.3184]
[1747703729809,4.00784155,2517.8,2517.5,0.79415]
[1747703730009,1.3318,2517.7,2517.6,0.79414]
[1747703730304,1.3318,2517.7,2517.3,1.3184]
[1747703730305,12.06675155,2517.8,2517.7,0.79411]
[1747703731113,3.21375155,2517.8,2517.7,0.79411]
[1747703731318,0.00595155,2517.8,2517.7,0.79411]
[1747703731518,0.00595155,2517.8,2517.7,2.11251]
[1747703732224,0.79411,2517.7,2517.2,4.553]
[1747703732517,0.00595155,2517.8,2517.7,0.79411]
[1747703734412,0.00595155,2517.8,2517.6,1.3063]
[1747703734413,0.79411,2517.7,2517.6,1.3063]
[1747703734719,1.3669,2517.7,2517.6,2.10043]
[1747703735714,1.3669,2517.7,2517.4,0.79419]
[1747703735913,1.3669,2517.7,2517.3,1.2697]
[1747703736117,10.2189,2517.7,2517.6,0.79414]
[1747703737221,10.2189,2517.7,2517.5,0.79415]
[1747703737416,10.2189,2517.7,2517.6,0.79414]
[1747703738518,10.2189,2517.7,2517.5,0.79415]
[1747703738721,10.2189,2517.7,2517.3,0.79421]
[1747703739024,0.79419,2517.5,2517.2,4.553]
[1747703739322,1.2642,2517.4,2517.3,0.79423]
[1747703739523,1.2642,2517.4,2517.3,2.11033]
[1747703740124,9.64612,2517.7,2517.5,0.79416]
[1747703740321,1.2642,2517.6,2517.5,0.79416]
[1747703740524,1.2642,2517.6,2517.4,0.79418]
[1747703740715,1.2642,2517.6,2517.5,0.79417]
[1747703741021,8.852,2517.7,2517.6,0.79414]
[1747703741615,10.1579,2517.7,2517.6,0.79414]
[1747703743224,8.852,2517.7,2517.6,0.79414]
[1747703743416,0.00595155,2517.8,2517.7,0.79411]
[1747703743619,0.00595155,2517.8,2517.7,2.73651]
[1747703743822,0.00595155,2517.8,2517.7,7.73651]
[1747703744119,0.00595155,2517.8,2517.7,8.17363792]
[1747703744319,2.34477809,2518.2,2518.1,0.79398]
[1747703744522,2.34477809,2518.2,2518.1,4.00178]
[1747703745230,8.827,2518.6,2518.5,0.79385]
[1747703745428,0.00595155,2518.8,2518.5,3.2078]
[1747703745620,0.00595155,2518.8,2518.7,0.79379]
[1747703745927,1.55e-06,2518.8,2518.7,0.79379]
[1747703746126,1.55e-06,2518.8,2518.7,5.79379]
[1747703747025,1.55e-06,2518.8,2518.7,10.05611049]
[1747703747225,1.55e-06,2518.8,2518.7,15.05611049]
[1747703747624,1.55e-06,2518.8,2518.7,6.92901049]
[1747703747826,1.55e-06,2518.8,2518.7,10.75501049]
[1747703749435,1.55e-06,2518.8,2518.7,10.31869]
[1747703751031,1.55e-06,2518.8,2518.7,1.49269]
[1747703751232,1.55e-06,2518.8,2518.7,10.31669]
[1747703752835,1.55e-06,2518.8,2518.7,1.49269]
[1747703753038,1.55e-06,2518.8,2518.6,1.3662]